Cogmind - Beta 14 @@@ ROGUE MODE // 2024.12.22 @ 21:30:20 Player: iromakkem Result: Destroyed by Y-45 Defender with Beam Rifle Performance ------------- Evolutions (1) 500 Regions Visited (4) 800 Robots Destroyed (51) 255 Value Destroyed (1229) 1229 Prototype IDs (1) 20 Alien Tech Used (0) 0 Bonus (-93) -93 TOTAL SCORE: 2711 Bonus ------- Follower Combat Kills 93 Friendly Fire -186 Cogmind --------- Core Integrity 0/400 Matter 297/300 Energy 125/125 System Corruption 5% Temperature Cool (9) Movement Treading (240) Ox1 Location -9/Storage Parts ------- > --- POWER (1) -------- Light Ion Engine > --- PROPULSION (2) --- Improved Treads Improved Treads > --- UTILITY (4) ------ Improved Heat Sink High-capacity Storage Unit Improved Targeting Computer Splice Drone Bay (5/6) > --- WEAPON (2) ------- Beam Rifle (fused) Light Assault Rifle > --- INVENTORY (20) --- Faulty Heavy Ion Engine Light Treads Improved Treads Improved Treads Improved Treads Heat Sink Heat Sink Improved Heat Sink Sensor Array Improved Targeting Computer Heavy Assault Rifle Light Cannon Improved Light Cannon Grenade Launcher Mini Grenade Launcher Hammer Makeshift Spear Peak State ------------ > --- POWER ------------ Light Angular Momentum Engine > --- PROPULSION ------- Improved Treads Improved Treads > --- UTILITY ---------- Improved Heat Sink High-capacity Storage Unit Improved Targeting Computer Splice Drone Bay > --- WEAPON ----------- Beam Rifle Light Assault Rifle > --- INVENTORY -------- Heavy Ion Engine Light Treads Improved Treads Improved Treads Improved Treads Heat Sink Heat Sink Improved Heat Sink Sensor Array Improved Targeting Computer Heavy Assault Rifle Light Cannon Improved Light Cannon Grenade Launcher Mini Grenade Launcher Hammer Makeshift Spear [Rating: 28] Favorites ----------- Power Light Ion Engine Engine Light Ion Engine Propulsion Aluminum Leg Treads Improved Treads Leg Aluminum Leg Utility High-capacity Storage Unit Device Seismic Detector Storage High-capacity Storage Unit Processor Improved Targeting Computer Protection Medium Armor Plating Weapon Light Assault Rifle Energy Gun Beam Rifle Ballistic Gun Light Assault Rifle Ballistic Cannon Improved Light Cannon Launcher Grenade Launcher Impact Weapon Hammer Piercing Weapon Makeshift Spear Build | -11 -10 -10 -9 -9 ------- Run | Yrd Mat Min Mat Sto Slots Evolved 2 | . . . 2 . Power . | . . . . . Propulsion . | . . . . . Utility 2 | . . . 2 . Weapon . | . . . . . Parts Attached 54 | 7 8 10 15 14 Power 9 | 1 1 1 2 4 Engine 9 | 1 1 1 2 4 Core . | . . . . . Reactor . | . . . . . Propulsion 13 | 2 2 4 4 1 Treads 9 | 2 . 2 4 1 Leg 4 | . 2 2 . . Wheel . | . . . . . Hover . | . . . . . Flight . | . . . . . Utility 14 | 2 2 1 5 4 Device 7 | 1 1 . 3 2 Storage 2 | 1 1 . . . Processor 1 | . . . . 1 Hackware . | . . . . . Protection 4 | . . 1 2 1 Artifact . | . . . . . Weapon 18 | 2 3 4 4 5 Energy Gun 6 | 2 1 2 1 . Energy Cannon . | . . . . . Ballistic Gun 7 | . 2 2 2 1 Ballistic Cannon 2 | . . . . 2 Launcher 1 | . . . . 1 Special Weapon . | . . . . . Impact Weapon 1 | . . . . 1 Slashing Weapon . | . . . . . Piercing Weapon 1 | . . . 1 . Special Melee Weapon . | . . . . . Unidentified Prototypes 1 | . . . . 1 Parts Lost 24 | . 1 7 9 7 Power 5 | . . 1 2 2 Propulsion 4 | . . 2 2 . Utility 7 | . . . 3 4 Weapon 8 | . 1 4 2 1 Highest Loss Streak 4 | . 1 3 3 4 To Critical Strikes 1 | . . . 1 . Average Slot Usage (%) 98 | . 99 98 98 98 Engine 12 | . 14 13 10 10 Treads 12 | . 5 2 19 22 Leg 12 | . 22 25 2 . Device 14 | . 14 12 18 12 Storage 12 | . 14 14 11 11 Processor 1 | . . . . 9 Protection 6 | . . 1 14 10 Energy Gun 7 | . 4 11 3 11 Ballistic Gun 16 | . 23 15 18 4 Ballistic Cannon 1 | . . . . 5 Peak Build Rating 28 | 9 9 9 17 28 Average Rating 11 | 5 7 8 13 21 On Entrance 8 | . 9 8 9 17 Naked Turns . | . . . . . Heaviest Build 64 | 13 46 50 60 64 Greatest Support 46 | 40 40 20 46 46 Greatest Overweight (x) 4 | 3 2 4 2 1 Average Overweight (x) 1 | . . 2 1 1 Largest Inventory Capacity 20 | 8 20 20 20 20 Average Capacity 17 | 7 13 20 20 20 Most Carried 20 | 6 12 15 20 20 Average Carried 13 | 3 8 13 14 18 Final Capacity 20 | 8 20 20 20 20 Final Carried 20 | 6 12 11 20 17 Class Distribution -------------------- 79% | Mutant 16% | Scavenger-Mutant 3% | Commander-Mutant Dominant Class ---------------- Mutant | -10/Materials Mutant | -10/Mines Mutant | -9/Materials Mutant | -9/Storage Resources | -11 -10 -10 -9 -9 ----------- Run | Yrd Mat Min Mat Sto Matter Collected 995 | 203 179 134 206 273 Remotely . | . . . . . Salvage Created 1474 | 112 164 235 383 580 Parts 110 | 6 15 21 26 42 Haulers Intercepted . | . . . . . Recyclers Shooed . | . . . . . Parts Field Recycled . | . . . . . Retrieved Matter . | . . . . . Parts Self-Destructed . | . . . . . Prevented . | . . . . . Kills | -11 -10 -10 -9 -9 ------- Run | Yrd Mat Min Mat Sto Combat Hostiles Destroyed 43 | . 5 12 10 16 Guns 34 | . 5 12 10 7 Cannons 3 | . . . . 3 AOE 6 | . . . . 6 Classes Destroyed 11 | 2 3 . 2 4 Worker 1 | . . . 1 . Builder 1 | . . . . 1 Tunneler 1 | 1 . . . . Recycler 1 | 1 . . . . Mechanic 1 | . . . . 1 Watcher 2 | . 1 . 1 . Swarmer 18 | . 2 10 4 2 Grunt 17 | . 3 2 3 9 Duelist 1 | . . . . 1 Protector 1 | . . . . 1 Sentry 6 | . . . 3 3 Thug 1 | . . . . 1 Best Kill Streak 10 | 1 3 3 4 10 Combat Bots Only 9 | . 2 3 4 9 Max Kills in Single Turn 3 | 1 1 1 1 3 Gunslinging . | . . . . . Exploded 3 | . . . . 3 Melee . | . . . . . Uniques/NPCs Destroyed . | . . . . . Combat | -11 -10 -10 -9 -9 -------- Run | Yrd Mat Min Mat Sto Hostile Shots Fired 359 | . 68 102 96 93 Missed 78 | . 13 20 23 22 Damage Taken 3769 | . 680 732 889 1468 Core 587 | . 97 76 100 314 Absorbed by Shields . | . . . . . Redirected to Shielding 55 | . . . 3 52 Core Remaining (%) 65 | 100 . 30 . . Volleys Fired 180 | 7 45 39 57 32 Largest 2 | 2 2 2 2 2 Hottest 105 | 90 90 105 76 95 Shots Fired 312 | 14 70 68 100 60 Gun 295 | 14 70 68 100 43 Cannon 13 | . . . . 13 Launcher 4 | . . . . 4 Special . | . . . . . Kinetic 223 | . 55 48 97 23 Thermal 72 | 7 9 20 3 33 Explosive 4 | . . . . 4 Electromagnetic 13 | 7 6 . . . Robot Hit Streak 17 | 2 12 12 16 17 Robot Miss Streak 5 | 2 4 4 5 3 Penetration Max . | . . . . . Secondary Targets 2 | . . 2 . . Max Gunslinging Chain 1 | . . 1 . . Shots Hit Robots 205 | 7 41 46 70 41 Core Hits 93 | 3 17 18 23 32 Critical Kills . | . . . . . Critical Parts Destroyed 1 | . . . 1 . Critical Strikes 7 | 1 1 . 1 4 Burn 4 | . 1 . . 3 Destroy 1 | . . . 1 . Blast 1 | . . . . 1 Corrupt 1 | 1 . . . . Melee Attacks 12 | . . . . 12 Impact 12 | . . . . 12 Slashing . | . . . . . Piercing . | . . . . . Sneak Attacks . | . . . . . Combat Hostiles . | . . . . . Follow-up Attacks . | . . . . . Damage Inflicted 2666 | 94 373 446 579 1174 Guns 1897 | 91 362 432 575 437 Cannons 152 | . . . . 152 Explosions 580 | . . . . 580 Melee . | . . . . . Ramming 37 | 3 11 14 4 5 Kinetic 1324 | . 262 289 575 198 Thermal 621 | 36 51 143 . 391 Explosive 580 | . . . . 580 Electromagnetic 104 | 55 49 . . . Impact . | . . . . . Slashing . | . . . . . Piercing . | . . . . . Highest Corruption 5 | . . . . 5 Average Corruption 5 | . . . . 5 Corruption Purged . | . . . . . Corruption Blocked . | . . . . . Effects 16 | . . . . 16 Message Errors 3 | . . . . 3 Matter Fused 7 | . . . . 7 Energy Discharges 2 | . . . . 2 Parts Fused 1 | . . . . 1 Data Loss (minor) 2 | . . . . 2 Misfires 1 | . . . . 1 Overload Shots . | . . . . . Overflow Damage 15 | . . . . 15 Projectiles . | . . . . . Explosions 15 | . . . . 15 Melee . | . . . . . Knockbacks 2 | . 1 . . 1 Impact 1 | . 1 . . . Kinetic 1 | . . . . 1 Secondary . | . . . . . Self-Inflicted Damage 26 | . . . . 26 Shots 1 | . . . . 1 Rammed 3 | 1 . . . 2 Targets Rammed 10 | 1 2 3 2 2 Kicked 5 | . 2 3 . . Crushed 2 | . . . 2 . Highest Temperature 264 | 122 264 135 18 119 Average Temperature 59 | 65 110 27 10 42 Received Heat Transfer 1212 | . 297 90 387 438 Effects 2 | . 2 . . . Interference 2 | . 2 . . . Siege Activations . | . . . . . Robots Corrupted . | . . . . . Combat Hostiles . | . . . . . Parts Fried . | . . . . . Impact Corruptions . | . . . . . Robots Melted . | . . . . . Combat Hostiles . | . . . . . Parts Melted 2 | . . . . 2 Heat Transferred 1854 | 111 222 324 . 1197 Parts Sabotaged . | . . . . . Parts Stolen . | . . . . . Parts Stripped . | . . . . . Power Chain Reactions . | . . . . . Alert | -11 -10 -10 -9 -9 ------- Run | Yrd Mat Min Mat Sto Peak Influence 314 | 10 133 140 183 314 Initial 33 | . 6 . 33 15 Average 75 | 3 38 38 61 195 Maximum Alert Level 1 | . . . . 1 Low Security (%) 85 | 100 100 100 100 30 Level 1 14 | . . . . 69 Level 2 . | . . . . . Level 3 . | . . . . . Level 4 . | . . . . . Level 5 . | . . . . . High Security . | . . . . . Max Security . | . . . . . Squads Dispatched 5 | . . . . 5 Investigation 1 | . . . . 1 Extermination . | . . . . . Reinforcement . | . . . . . Assault 2 | . . . . 2 Garrison 2 | . . . . 2 Intercept . | . . . . . Searches Triggered . | . . . . . Construction Impeded . | . . . . . Haulers Reinforced . | . . . . . Active Scanning Responses . | . . . . . Cargo Convoy Interrupts . | . . . . . Stealth | -11 -10 -10 -9 -9 --------- Run | Yrd Mat Min Mat Sto Distress Signals 6 | . 1 . 4 1 Communications Jammed . | . . . . . Distress Signals . | . . . . . Times Spotted 79 | . 15 13 23 28 Peak Tracking Total 8 | . 6 3 4 8 Tactical Retreats 3 | . 1 1 1 . Traps | -11 -10 -10 -9 -9 ------- Run | Yrd Mat Min Mat Sto Traps Triggered 1 | . 1 . . . Indirectly . | . . . . . Trap Hack Attempts . | . . . . . Triggered . | . . . . . Disarmed . | . . . . . Reprogrammed . | . . . . . Reused . | . . . . . Traps Extracted . | . . . . . Installed . | . . . . . Triggered . | . . . . . Machines | -11 -10 -10 -9 -9 ---------- Run | Yrd Mat Min Mat Sto Machines Disabled . | . . . . . Max in Single Turn . | . . . . . Machines Repaired . | . . . . . Machines Dismantled . | . . . . . Machines Sabotaged . | . . . . . Overloaded Fab Kills . | . . . . . Hacking | -11 -10 -10 -9 -9 --------- Run | Yrd Mat Min Mat Sto Machines Accessed 5 | . 2 1 . 2 Terminals 4 | . 2 . . 2 Fabricators . | . . . . . Repair Stations . | . . . . . Recycling Units . | . . . . . Scanalyzers . | . . . . . Garrison Access . | . . . . . Total Hacks 8 | . 3 1 . 4 Successful 3 | . 1 1 . 1 Failed 5 | . 2 . . 3 Catastrophic 2 | . 2 . . . Database Lockouts . | . . . . . Manual . | . . . . . Terminals 7 | . 3 . . 4 Fabricators . | . . . . . Repair Stations . | . . . . . Recycling Units . | . . . . . Scanalyzers . | . . . . . Garrison Access . | . . . . . Terminal Hacks 3 | . 1 1 . 1 Open Door 1 | . . 1 . . Investigation Status 1 | . 1 . . . Zone Layout 1 | . . . . 1 Fabricator Hacks . | . . . . . Repair Station Hacks . | . . . . . Recycling Unit Hacks . | . . . . . Scanalyzer . | . . . . . Garrison Access Hacks . | . . . . . Unauthorized Hacks . | . . . . . Terminals . | . . . . . Fabricators . | . . . . . Repair Stations . | . . . . . Recycling Units . | . . . . . Scanalyzers . | . . . . . Garrison Access . | . . . . . Data Cores Recovered . | . . . . . Used . | . . . . . Hacking Detections 2 | . 1 . . 1 Full Trace Events 2 | . 1 . . 1 Feedback Events . | . . . . . Feedback Blocked . | . . . . . Robot Schematics Acquired . | . . . . . Robots Built . | . . . . . Authchips . | . . . . . Time . | . . . . . Total Robot Build Rating . | . . . . . Part Schematics Acquired . | . . . . . Parts Built . | . . . . . Authchips . | . . . . . Time . | . . . . . Total Part Build Rating . | . . . . . Parts Repaired . | . . . . . Time . | . . . . . Parts Recycled . | . . . . . Recycled Matter . | . . . . . Retrieved Matter . | . . . . . Retrieved Components . | . . . . . Parts Scanalyzed . | . . . . . Part Schematics Acquired . | . . . . . Parts Damaged . | . . . . . Bothacking | -11 -10 -10 -9 -9 ------------ Run | Yrd Mat Min Mat Sto Used RIF Installer . | . . . . . Robots Hacked . | . . . . . Non-combat . | . . . . . Combat . | . . . . . Robot Hacks Applied . | . . . . . Relay Couplers Released . | . . . . . Fabnet Peak Effective % . | . . . . . Robots Rewired . | . . . . . Allies Hacked . | . . . . . Hacks Repelled . | . . . . . Allies | -11 -10 -10 -9 -9 -------- Run | Yrd Mat Min Mat Sto Total Allies 12 | . . . . 12 Largest Group 10 | . . . . 10 Highest-Rated Group 88 | . . . . 88 Highest-Rated Ally 31 | . . . . 31 Total Orders . | . . . . . Ally Attacks 39 | . . . . 39 Total Damage 241 | . . . . 241 Kills 8 | . . . . 8 Allies Corrupted . | . . . . . Allies Melted . | . . . . . Intel | -11 -10 -10 -9 -9 ------- Run | Yrd Mat Min Mat Sto Robot Analysis Total . | . . . . . Derelict Logs Recovered . | . . . . . Drone Launches 6 | . . . . 6 Drone Recoveries 5 | . . . . 5 Exploration | -11 -10 -10 -9 -9 ------------- Run | Yrd Mat Min Mat Sto Turns Passed 3697 | 129 1061 760 994 753 Spaces Moved 1321 | 57 500 223 312 229 Core 13 | 13 . . . . Treads 687 | 44 67 35 312 229 Legs 621 | . 433 188 . . Wheels . | . . . . . Hover . | . . . . . Flight . | . . . . . Fastest Speed 50 | 50 120 260 240 240 Average Speed 220 | 159 176 270 253 240 Slowest Speed 400 | 200 260 400 320 240 Overloaded Moves . | . . . . . Propulsion Burnouts . | . . . . . Robots Hopped . | . . . . . Cave-ins Triggered 1 | . . . . 1 Exploration Rate (%) 37 | 4 75 51 22 37 Regions Visited 4 Branch Regions 2 Pre-discovered Areas . | . . . . . Known Exits Taken . | . . . . . Unknown Exits Taken 4 | 1 1 1 1 . Scrap Searched 1 | . . 1 . . Spaces Dug 4 | . . . . 4 Terrain Destroyed 32 | . . . . 32 Melee 4 | . . . . 4 Projectile 1 | . . . . 1 AOE 27 | . . . . 27 Terrain Rammed . | . . . . . Walls Destroyed . | . . . . . Machines Disabled . | . . . . . Actions | -11 -10 -10 -9 -9 --------- Run | Yrd Mat Min Mat Sto Total 1799 | 78 622 318 431 350 Wait 151 | . 44 35 21 51 Move 1317 | 56 499 222 311 229 Hop . | . . . . . Pick Up 56 | 7 15 7 21 6 Fast Attach 13 | 6 1 1 3 2 Attach 33 | 1 6 8 10 8 Detach . | . . . . . Swap 8 | . 1 1 2 4 Drop 19 | . 9 2 4 4 Fire 180 | 7 45 39 57 32 Melee 12 | . . . . 12 Ram . | . . . . . Kick 5 | . 2 3 . . Crush 5 | 1 . . 2 2 Escape Stasis . | . . . . . Rewire . | . . . . . Trap . | . . . . . Miscellaneous . | . . . . . Route ------- -11/Scrapyard -10/Materials (discovered 4 exits: *Mat x2 / *Min x2) -10/Mines (discovered 2 exits: *Mat x2) -9/Materials -9/Storage History --------- Turn | Location | Event 27 | -11/Scrapyard | Discovered new exit (range 15) 130 | -11/Scrapyard | Entered Materials 157 | -10/Materials | Discovered new exit (range 16) 304 | -10/Materials | Build established: Mutant 499 | -10/Materials | Discovered new exit (range 15) 774 | -10/Materials | Discovered new exit (range 9) 1033 | -10/Materials | Discovered new exit (range 15) 1191 | -10/Materials | Entered Mines 1236 | -10/Mines | Met a Derelict bent on vengeance 1334 | -10/Mines | A weapon hastily lodged in a ceiling crevice suddenly fell to the ground 1510 | -10/Mines | Lost 3 parts (1p1n1w) 1571 | -10/Mines | Discovered new exit (range 9) 1711 | -10/Mines | Found the Drone Emporium 1728 | -10/Mines | Found Prototype Device 1810 | -10/Mines | Core integrity fell below 50% 1929 | -10/Mines | Discovered new exit (range 4) 1951 | -10/Mines | Entered Materials 1951 | -9/Materials | Evolved 2 slots: Utility x2 2453 | -9/Materials | Build established: Scavenger-Mutant 2551 | -9/Materials | Lost 3 parts (1n2u) 2910 | -9/Materials | Build established: Mutant 2921 | -9/Materials | Discovered new exit (range 11) 2945 | -9/Materials | Entered Storage 3008 | -9/Storage | Met a pair of Derelict thieves 3075 | -9/Storage | Crushed by falling debris 3075 | -9/Storage | Core integrity fell below 50% 3079 | -9/Storage | Core integrity fell below 20% 3106 | -9/Storage | Lost 4 parts (1p3u) 3107 | -9/Storage | Destroyed 9 combat bots 3384 | -9/Storage | Assisted by bots powering up and referring to "LRC-V3" 3498 | -9/Storage | Garrison activated, responded to threat 3546 | -9/Storage | Lost 8 allies 3563 | -9/Storage | Identified Splice Drone Bay 3692 | -9/Storage | Garrison activated, responded to threat 3698 | -9/Storage | Destroyed by Y-45 Defender with Beam Rifle Last Messages --------------- >>Layout(Zone) Retrieving Zone 8U layout... Downloaded map data. 03629_ R-06 Scavenger collects Flight Unit. 03631_ K-01 Serf cleans the Transfer Shaft. 03634_ R-06 Scavenger collects Lgt. Assault Rifle. 03637_ K-01 Serf cleans the Transfer Shaft. 03637_ W-16 Scout sends out distress signal. 03638_ R-06 Scavenger collects Flight Unit. 03642_ K-01 Serf cleans the Transfer Shaft. 03643_ System corrupted: Component data lost. 03645_ K-01 Serf cleans the Transfer Shaft. 03649_ K-01 Serf cleans the Terminal. 03674_ System corrupted: Component data lost. 03689_ /N9SPL3QZSPO,UQM9I 03689_ Critical hit (Burn: +37). 03692_ Y-45 Defender calls for garrison reinforcements. 03692_ ALERT: Activating Garrison Access S001. Map ----- +----------------------------------------------------+ | ?????????????????????????????????????????????????? | | ?????????????????????????????????????????????????? | | ?????????????????????????????????????????????????? | | ?????????????????????????????????????????????????? | | ?????????????????????????????????????????????????? | | ?????????????????????????????????????????????????? | | ?????????????????????????????????????????????????? | | ?????????????????????????????????????????????????? | | ?????????????????????????????????????????????????? | | ?????????????????????????????????????????????????? | | ?????????????????????????????????????????????????? | | ?????????????????????????????????????????????????? | | ?????????????????????????????????????????????????? | | ???????????????????????????+#????????????????????? | | ??????????????????????????? ????????????????????? | | ??????????????????????????? ????????????????????? | | ??????????????????????????? ????????????????????? | | ??????????????????????????# ????????????????????? | | ??????????????????????????# ????????????????????? | | ??????????????????????????# ????????????????????? | | ???????????????#??????????# ????????????????????? | | ???????????????# ????????# ##############???????? | | ???????????????# ?? #?# # ## # | | ???????????????# #?# # """ """ ## | | ???????????????# ### # "T" """ # #### | | ???????????+ k /@ Y " " """ !! ## ## | | ???????????????# ### # !! ## ## " | | ???????????????# #?# ##+####+####### ## " | | ???????????????# ?? #?# ### # " | | ???????????????# ???? #?# / | | ???????????????#??????###?# # | | ??????????????????????#???# ^ """ ####+##### | | ??????????????????????#???# ^ """ # ## | | ??????????????????????#???# """ # ## | | ?????????????????????###### ^ # ### | | ?????????????????????# ! # % # #### | | ?????????????????????? # ^ ^ "# + | | ?????????????????????? + T# #### | | ?????????????????????? # % "# #??? | | ?????????????????????? # # #??? | | ?????????????????????? !=+ #########??? | | ?????????????????????? % ####+##% # #??? | | ??????????????????????#####?#T ##%%^% # #??? | | ?????????????????#############"##=[===# ##?? | | ?????????????????# ### ##[ %%[# """"" #?? | | ?????????????????# """ """ "####=%[= # """"" ##?? | | ?????????????????# """ """ ###### # """"" #??? | | ??###????????????# """ """ #???## # #??? | | ??#T##???????????# """ """ #???## !% # """"" #??? | | ??" #???????????# """ """ #????# # """"" #### | +----------------------------------------------------+ Best States ------------- Heat Dissipation 42 Energy Generation 18 Energy Capacity 265 Matter Stores 300 Matter Capacity 300 Sight Range 16 Terrain Scan Range 16 Terrain Scan Density 10 Armor Coverage 225 Core Shielding 20 Evasion (%) 55 Targeting Accuracy 6 Recoil Reduction 2 Item Schematics ----------------- None Robot Schematics ------------------ None Fabricated ------------ Nothing Alien Tech Used ----------------- None Achievements -------------- Error 47 Factory Defaults The More The Merrier Challenges ------------ None Game ------ Seed ElectrostormPointyRay Manual? 0 Play Time 00:34:35 Cumulative 25.2 hours Start 2024.12.22 @ 20:14:27 End 2024.12.22 @ 21:30:20 Sessions 1 Manual Loads 0 Difficulty Rogue Special Mode None Game No. 28 Rogue 28 Adventurer 0 Explorer 0 Win Type - Total 0 Types 0/0/0/0/0/0/0/0/0 Lore% 3 Gallery% 18 Achievement% 18 Wizard Run 0 Options --------- Layout 1 ASCII 0 Keyboard 0 Movement Mouse Keybinds 0 Fullscreen 1 Font 16/SmallcapsGlow Map View 50x40 Zoom Use 65% Tactical HUD 1 Map Filters NONE Filters NONE Steam SD RUN: 17f57fc5-2ab3-411e-bbb6-3a1489041520